[Event "DVM U10 2024"]
[Site "Duesseldorf"]
[Date "2024.12.28"]
[Round "5"]
[White "Cheng, Louis"]
[Black "Thotli, Jathin Krishna"]
[Result "0-1"]
[ECO "C44"]
[WhiteElo "2087"]
[BlackElo "1422"]
[Annotator "RC"]
[PlyCount "72"]
[EventDate "2024.12.23"]
[EventType "team-tourn"]
[EventRounds "7"]
[EventCountry "GER"]
[SourceTitle "playchess.com"]
[Source "ChessBase"]
[SourceQuality "1"]
[TimeControl "3300+5"]

1. e4 {[%emt 0:00:05]} e5 {[%emt 0:00:06]} 2. Nf3 {[%emt 0:00:03]} Nc6 {[%emt 0:00:06]} 3. d4 {[%emt 0:00:04]} f6 {[%emt 0:00:11]} 4. dxe5 {[%emt 0:00:43]} fxe5 {[%emt 0:00:08]} 5. Bc4 {[%emt 0:00:18]} Bc5 {[%emt 0:00:05]} 6. Nc3 {[%emt 0:00:08]} Nf6 {[%emt 0:00:03]} 7. Bg5 {[%emt 0:00:12]} h6 {[%emt 0:00:28]} 8. Bh4 {[%emt 0:00:06]} Na5 {[%emt 0:00:16]} 9. Nxe5 {[%emt 0:01:00]} Nxc4 {[%emt 0:00:24]} 10. Nxc4 {[%emt 0:00:09]} O-O {[%emt 0:00:36]} 11. Nd5 {[%emt 0:00:42]} Be7 {[%emt 0:03:04]} 12. e5 {[%emt 0:01:14]} Nxd5 {[%emt 0:00:22]} 13. Bxe7 {[%emt 0:00:56]} Nxe7 {[%emt 0:00:15]} 14. Qe2 {[%emt 0:01:39]} d5 {[%emt 0:01:06]} 15. exd6 {[%emt 0:00:31]} cxd6 {[%emt 0:00:45]} 16. O-O-O {[%emt 0:00:10]} Rf6 {[%emt 0:01:17]} 17. Rd3 {[%emt 0:02:17]} Be6 {[%emt 0:00:34]} 18. Nxd6 {[%emt 0:01:31]} Bg4 {[%emt 0:02:06]} 19. Qxg4 {[%emt 0:00:27]} Rxd6 {[%emt 0:00:13]} 20. Rhd1 {[%emt 0:00:38]} Rxd3 {[%emt 0:01:24]} 21. Rxd3 {[%emt 0:00:16]} Qc7 {[%emt 0:00:34]} 22. Rc3 {[%emt 0:01:30]} Qxh2 {[%emt 0:00:59]} 23. Qe6+ {[%emt 0:01:19]} Kf8 {[%emt 0:00:39]} 24. Rf3+ {[%emt 0:00:30]} Ke8 {[%emt 0:00:08]} 25. Qg8+ {[%emt 0:00:16]} Nxg8 {[%emt 0:00:12]} 26. Rg3 {[%emt 0:03:44]} Rd8 {[%emt 0:00:14]} 27. Re3+ {[%emt 0:00:28]} Ne7 {[%emt 0:00:06]} 28. b3 {[%emt 0:00:11]} Qg1+ {[%emt 0:00:17]} 29. Kb2 {[%emt 0:00:08]} Qxf2 {[%emt 0:00:09]} 30. Rc3 {[%emt 0:00:49]} Rd6 {[%emt 0:00:17]} 31. g4 {[%emt 0:02:51]} Rd1 {[%emt 0:00:06]} 32. Ka3 {[%emt 0:01:00]} Rb1 {[%emt 0:00:12]} 33. g5 {[%emt 0:00:51]} Qb6 {[%emt 0:00:14]} 34. Rc4 {[%emt 0:00:22]} Qd6+ {[%emt 0:00:20]} 35. Rb4 {[%emt 0:00:12]} a5 {[%emt 0:00:06]} 36. Ka4 {[%emt 0:00:48]} Qxb4# {[%emt 0:00:13]} 0-1

[Event "DVM U10 2024"]
[Site "Duesseldorf"]
[Date "2024.12.28"]
[Round "5"]
[White "Jiang, Alexander D"]
[Black "Nickel, Alexander"]
[Result "0-1"]
[ECO "C54"]
[WhiteElo "1958"]
[BlackElo "1200"]
[Annotator "RC"]
[PlyCount "110"]
[EventDate "2024.12.23"]
[EventType "team-tourn"]
[EventRounds "7"]
[EventCountry "GER"]
[SourceTitle "playchess.com"]
[Source "ChessBase"]
[SourceQuality "1"]
[TimeControl "3300+5"]

1. e4 {[%emt 0:00:02]} e5 {[%emt 0:00:03]} 2. Nf3 {[%emt 0:00:06]} Nc6 {[%emt 0:00:04]} 3. Bc4 {[%emt 0:00:10]} Bc5 {[%emt 0:00:04]} 4. c3 {[%emt 0:00:06]} Nf6 {[%emt 0:00:04]} 5. d4 {[%emt 0:00:04]} exd4 {[%emt 0:00:14]} 6. cxd4 {[%emt 0:00:07]} Bb4+ {[%emt 0:00:12]} 7. Nc3 {[%emt 0:00:15]} Nxe4 {[%emt 0:00:07]} 8. O-O {[%emt 0:00:10]} Bxc3 {[%emt 0:00:09]} 9. bxc3 {[%emt 0:00:09]} d5 {[%emt 0:00:07]} 10. Re1 {[%emt 0:00:19]} O-O {[%emt 0:01:02]} 11. Bb5 {[%emt 0:00:21]} Bd7 {[%emt 0:00:59]} 12. c4 {[%emt 0:00:13]} dxc4 {[%emt 0:02:52]} 13. Rxe4 {[%emt 0:00:59]} Re8 {[%emt 0:00:51]} 14. Bxc6 {[%emt 0:00:31]} Bxc6 {[%emt 0:00:13]} 15. Rxe8+ {[%emt 0:00:16]} Qxe8 {[%emt 0:00:02]} 16. Ba3 {[%emt 0:00:20]} Qe6 {[%emt 0:02:05]} 17. Ng5 {[%emt 0:00:36]} Qg6 {[%emt 0:00:17]} 18. d5 {[%emt 0:01:23]} Rd8 {[%emt 0:01:22]} 19. Be7 {[%emt 0:05:12]} Rxd5 {[%emt 0:03:00]} 20. Qe2 {[%emt 0:03:31]} Rxg5 {[%emt 0:01:27]} 21. Bxg5 {[%emt 0:00:18]} Qxg5 {[%emt 0:00:09]} 22. f3 {[%emt 0:01:20]} h6 {[%emt 0:01:44]} 23. Re1 {[%emt 0:00:40]} a6 {[%emt 0:04:14]} 24. Qxc4 {[%emt 0:00:36]} Qg6 {[%emt 0:01:14]} 25. Rd1 {[%emt 0:01:45]} Bxf3 {[%emt 0:01:01]} 26. Rd8+ {[%emt 0:00:47]} Kh7 {[%emt 0:00:05]} 27. Qd3 {[%emt 0:00:12]} Be4 {[%emt 0:00:44]} 28. Qg3 {[%emt 0:01:10]} Qb6+ {[%emt 0:00:07]} 29. Kf1 {[%emt 0:01:52]} Qf6+ {[%emt 0:00:05]} 30. Qf2 {[%emt 0:00:47]} Qxd8 {[%emt 0:00:11]} 31. Qxf7 {[%emt 0:00:23]} Qf6+ {[%emt 0:00:23]} 32. Qxf6 {[%emt 0:00:07]} gxf6 {[%emt 0:00:03]} 33. Kf2 {[%emt 0:00:14]} f5 {[%emt 0:00:01]} 34. g3 {[%emt 0:00:28]} Kg7 {[%emt 0:00:09]} 35. Ke3 {[%emt 0:00:03]} c5 {[%emt 0:00:26]} 36. a4 {[%emt 0:00:19]} b5 {[%emt 0:00:10]} 37. a5 {[%emt 0:00:14]} b4 {[%emt 0:00:05]} 38. Kd2 {[%emt 0:00:28]} c4 {[%emt 0:00:11]} 39. h4 {[%emt 0:01:10]} h5 {[%emt 0:00:07]} 40. Kc1 {[%emt 0:00:03]} Kf6 {[%emt 0:00:13]} 41. Kb2 {[%emt 0:00:25]} c3+ {[%emt 0:00:09]} 42. Ka1 {[%emt 0:00:39]} b3 {[%emt 0:00:30]} 43. g4 {[%emt 0:00:07]} c2 {[%emt 0:00:10]} 44. g5+ {[%emt 0:00:29]} Ke5 {[%emt 0:00:14]} 45. Kb2 {[%emt 0:00:04]} f4 {[%emt 0:00:43]} 46. Kc1 {[%emt 0:00:34]} f3 {[%emt 0:00:12]} 47. Kd2 {[%emt 0:00:02]} f2 {[%emt 0:00:10]} 48. g6 {[%emt 0:00:25]} Bxg6 {[%emt 0:00:14]} 49. Ke2 {[%emt 0:00:21]} f1=Q+ {[%emt 0:00:19]} 50. Kxf1 {[%emt 0:00:26]} c1=Q+ {[%emt 0:00:07]} 51. Kg2 {[%emt 0:00:19]} Qf4 {[%emt 0:00:14]} 52. Kh3 {[%emt 0:01:00]} Qg4+ {[%emt 0:00:02]} 53. Kh2 {[%emt 0:00:11]} Kf4 {[%emt 0:00:07]} 54. Kh1 {[%emt 0:00:28]} Be4+ {[%emt 0:00:04]} 55. Kh2 {[%emt 0:00:07]} Qg3# {[%emt 0:00:01]} 0-1

[Event "DVM U10 2024"]
[Site "Duesseldorf"]
[Date "2024.12.28"]
[Round "5"]
[White "Peters, Leopold"]
[Black "Studdert, Levi"]
[Result "0-1"]
[ECO "D37"]
[WhiteElo "1701"]
[BlackElo "1234"]
[Annotator "NA RC"]
[PlyCount "60"]
[EventDate "2024.12.23"]
[EventType "team-tourn"]
[EventRounds "7"]
[EventCountry "GER"]
[SourceTitle "playchess.com"]
[Source "ChessBase"]
[SourceQuality "1"]
[TimeControl "3300+5"]

1. d4 {[%emt 0:00:04]} d5 {[%emt 0:00:09]} 2. c4 {[%emt 0:00:08]} e6 {[%emt 0:00:19]} 3. Nc3 {[%emt 0:02:22]} Nf6 {[%emt 0:00:35]} 4. Nf3 {[%emt 0:00:15]} Be7 {[%emt 0:00:25]} 5. h3 {[%emt 0:00:53]} O-O {[%emt 0:00:35]} 6. Bf4 {[%emt 0:00:09]} a6 {[%emt 0:00:40]} 7. e3 {[%emt 0:00:20]} dxc4 {[%emt 0:00:37]} 8. Bxc4 {[%emt 0:00:32]} b5 {[%emt 0:00:23]} 9. Bd3 {[%emt 0:01:01]} Bb7 {[%emt 0:00:21]} 10. O-O {[%emt 0:00:41]} Nbd7 {[%emt 0:00:47]} 11. Qe2 {[%emt 0:01:38]} Rc8 {[%emt 0:02:55]} 12. Rac1 {[%emt 0:02:36]} c5 {[%emt 0:00:32]} 13. Rfd1 {[%emt 0:01:32]} Qb6 {[%emt 0:01:15]} 14. Bh2 {[%emt 0:02:14]} c4 {[%emt 0:00:23]} 15. Bb1 {[%emt 0:00:10]} Rfd8 {[%emt 0:01:03]} 16. Qc2 {[%emt 0:02:59]} Nf8 {[%emt 0:01:39]} 17. Ne2 {[%emt 0:02:12]} Bxf3 {[%emt 0:00:52]} 18. gxf3 {[%emt 0:00:13]} Ng6 {[%emt 0:00:35]} 19. Bg3 {[%emt 0:00:22]} Nh5 {[%emt 0:01:40]} 20. Kh2 {[%emt 0:01:40]} f5 {[%emt 0:00:44]} 21. Be5 {[%emt 0:03:52]} Nh4 {[%emt 0:04:28]} 22. Ng1 {[%emt 0:01:50]} c3 {[%emt 0:04:49]} 23. Qe2 {[%emt 0:02:22]} b4 {[%emt 0:00:56]} 24. bxc3 {[%emt 0:01:21]} Rxc3 {[%emt 0:01:50]} 25. Qb2 {[%emt 0:01:44]} Qc6 {[%emt 0:04:52]} 26. e4 {[%emt 0:04:24]} Rc8 {[%emt 0:02:29]} 27. Rxc3 {[%emt 0:02:26]} bxc3 {[%emt 0:02:03]} 28. Qc2 {[%emt 0:00:37]} Qb5 {[%emt 0:03:13]} 29. d5 {[%emt 0:01:09]} exd5 {[%emt 0:01:50]} 30. Rxd5 {[%emt 0:00:41]} Qf1 {[%emt 0:00:36]} 0-1

[Event "DVM U10 2024"]
[Site "Duesseldorf"]
[Date "2024.12.28"]
[Round "5"]
[White "Schmidt, Jan"]
[Black "Barsov, Mikhail"]
[Result "1/2-1/2"]
[ECO "D58"]
[WhiteElo "1688"]
[BlackElo "1737"]
[Annotator "NA RC"]
[PlyCount "41"]
[EventDate "2024.12.23"]
[EventType "team-tourn"]
[EventRounds "7"]
[EventCountry "GER"]
[SourceTitle "playchess.com"]
[Source "ChessBase"]
[SourceQuality "1"]
[TimeControl "3300+5"]

1. d4 {[%emt 0:00:03]} d5 {[%emt 0:00:15]} 2. c4 {[%emt 0:00:08]} e6 {[%emt 0:00:03]} 3. Nc3 {[%emt 0:00:07]} Nf6 {[%emt 0:00:03]} 4. Nf3 {[%emt 0:00:08]} Be7 {[%emt 0:00:54]} 5. Bg5 {[%emt 0:00:14]} h6 {[%emt 0:00:26]} 6. Bh4 {[%emt 0:00:11]} O-O {[%emt 0:00:06]} 7. e3 {[%emt 0:00:09]} Nbd7 {[%emt 0:00:14]} 8. Bd3 {[%emt 0:01:27]} dxc4 {[%emt 0:00:32]} 9. Bxc4 {[%emt 0:00:07]} b6 {[%emt 0:00:45]} 10. O-O {[%emt 0:00:44]} Bb7 {[%emt 0:00:36]} 11. Rc1 {[%emt 0:01:49]} Rc8 {[%emt 0:01:29]} 12. Qe2 {[%emt 0:05:37]} c5 {[%emt 0:08:21]} 13. Bb3 {[%emt 0:05:59]} Ne4 {[%emt 0:13:51]} 14. Bxe7 {[%emt 0:08:47]} Qxe7 {[%emt 0:00:06]} 15. Rfd1 {[%emt 0:01:31]} Ndf6 {[%emt 0:02:03]} 16. h3 {[%emt 0:09:25]} Rfd8 {[%emt 0:02:17]} 17. Nxe4 {[%emt 0:00:55]} Nxe4 {[%emt 0:01:19]} 18. dxc5 {[%emt 0:09:22]} Nxc5 {[%emt 0:00:34]} 19. Bc4 {[%emt 0:02:05]} Qf6 {[%emt 0:05:55]} 20. Nd4 {[%emt 0:01:15]} Qg6 {[%emt 0:04:16]} 21. Nf3 1/2-1/2

[Event "DVM U10 2024"]
[Site "Duesseldorf"]
[Date "2024.12.28"]
[Round "5"]
[White "Busch, Jonathan Luis"]
[Black "Ahmadov, Ahmad"]
[Result "1-0"]
[ECO "C54"]
[WhiteElo "1655"]
[BlackElo "1663"]
[Annotator "NA RC"]
[PlyCount "69"]
[EventDate "2024.12.23"]
[EventType "team-tourn"]
[EventRounds "7"]
[EventCountry "GER"]
[SourceTitle "playchess.com"]
[Source "ChessBase"]
[SourceQuality "1"]
[TimeControl "3300+5"]

1. e4 {[%emt 0:00:01]} e5 {[%emt 0:00:14]} 2. Nf3 {[%emt 0:00:06]} Nc6 {[%emt 0:00:24]} 3. Bc4 {[%emt 0:00:11]} Bc5 {[%emt 0:00:11]} 4. c3 {[%emt 0:00:05]} Nf6 {[%emt 0:00:12]} 5. d4 {[%emt 0:00:07]} exd4 {[%emt 0:00:10]} 6. e5 {[%emt 0:00:06]} d5 {[%emt 0:00:10]} 7. Bb5 {[%emt 0:00:05]} Ne4 {[%emt 0:00:15]} 8. cxd4 {[%emt 0:00:10]} Bb4+ {[%emt 0:00:19]} 9. Bd2 {[%emt 0:00:07]} Bxd2+ {[%emt 0:00:13]} 10. Nbxd2 {[%emt 0:00:08]} Bf5 {[%emt 0:00:29]} 11. Rc1 {[%emt 0:00:39]} Bd7 {[%emt 0:01:36]} 12. Qc2 {[%emt 0:01:11]} Nxd2 {[%emt 0:00:32]} 13. Qxd2 {[%emt 0:00:20]} O-O {[%emt 0:00:34]} 14. h3 {[%emt 0:00:30]} f6 {[%emt 0:01:33]} 15. Be2 {[%emt 0:01:55]} Re8 {[%emt 0:02:17]} 16. exf6 {[%emt 0:00:34]} Qxf6 {[%emt 0:00:31]} 17. O-O {[%emt 0:00:22]} Re7 {[%emt 0:03:52]} 18. Bd3 {[%emt 0:00:21]} Bxh3 {[%emt 0:02:06]} 19. Bxh7+ {[%emt 0:05:17]} Kxh7 {[%emt 0:02:52]} 20. Ng5+ {[%emt 0:00:18]} Kg8 {[%emt 0:00:59]} 21. Nxh3 {[%emt 0:00:45]} Qxd4 {[%emt 0:01:19]} 22. Qxd4 {[%emt 0:00:27]} Nxd4 {[%emt 0:00:18]} 23. Rfe1 {[%emt 0:03:09]} Rae8 {[%emt 0:00:56]} 24. Rxe7 {[%emt 0:00:35]} Rxe7 {[%emt 0:00:22]} 25. Rd1 {[%emt 0:00:38]} Ne2+ {[%emt 0:01:49]} 26. Kf1 {[%emt 0:00:22]} d4 {[%emt 0:03:03]} 27. Rd2 {[%emt 0:01:54]} Nc1 {[%emt 0:02:13]} 28. Rxd4 {[%emt 0:08:28]} Nxa2 {[%emt 0:02:04]} 29. Ra4 {[%emt 0:00:12]} Nc1 {[%emt 0:00:19]} 30. Rxa7 {[%emt 0:00:05]} Nd3 {[%emt 0:00:13]} 31. g3 {[%emt 0:00:25]} c5 {[%emt 0:02:34]} 32. Ng5 {[%emt 0:00:51]} Re1+ {[%emt 0:01:04]} 33. Kg2 {[%emt 0:01:44]} Re2 {[%emt 0:00:11]} 34. Ra8+ {[%emt 0:00:08]} Re8 {[%emt 0:00:56]} 35. Rxe8# {[%emt 0:00:07]} 1-0

[Event "DVM U10 2024"]
[Site "Duesseldorf"]
[Date "2024.12.28"]
[Round "5"]
[White "Kukhtichev, Maksim"]
[Black "Wilting, Oskar"]
[Result "1-0"]
[ECO "B22"]
[WhiteElo "1639"]
[BlackElo "1454"]
[Annotator "NA RC"]
[PlyCount "45"]
[EventDate "2024.12.23"]
[EventType "team-tourn"]
[EventRounds "7"]
[EventCountry "GER"]
[SourceTitle "playchess.com"]
[Source "ChessBase"]
[SourceQuality "1"]
[TimeControl "3300+5"]

1. e4 {[%emt 0:00:01]} c5 {[%emt 0:00:09]} 2. c3 {[%emt 0:00:03]} Nf6 {[%emt 0:00:09]} 3. e5 {[%emt 0:00:28]} Nd5 {[%emt 0:00:08]} 4. d4 {[%emt 0:00:14]} cxd4 {[%emt 0:00:08]} 5. cxd4 {[%emt 0:00:04]} e6 {[%emt 0:00:09]} 6. Nf3 {[%emt 0:00:16]} d6 {[%emt 0:01:17]} 7. exd6 {[%emt 0:00:33]} Bxd6 {[%emt 0:00:21]} 8. Bc4 {[%emt 0:00:15]} O-O {[%emt 0:03:21]} 9. O-O {[%emt 0:00:35]} Qc7 {[%emt 0:03:51]} 10. Bxd5 {[%emt 0:00:20]} exd5 {[%emt 0:00:45]} 11. Nc3 {[%emt 0:00:09]} Qc6 {[%emt 0:04:55]} 12. Bd2 {[%emt 0:00:37]} Bf5 {[%emt 0:02:15]} 13. Qb3 {[%emt 0:01:06]} Rd8 {[%emt 0:05:25]} 14. Kh1 {[%emt 0:01:25]} Be7 {[%emt 0:07:06]} 15. Rfe1 {[%emt 0:00:18]} Bf6 {[%emt 0:05:28]} 16. Rac1 {[%emt 0:01:10]} Na6 {[%emt 0:04:51]} 17. Ne4 {[%emt 0:01:08]} Qd7 {[%emt 0:04:00]} 18. Nxf6+ {[%emt 0:00:14]} gxf6 {[%emt 0:00:49]} 19. Nh4 {[%emt 0:00:26]} Be6 {[%emt 0:02:12]} 20. Qg3+ {[%emt 0:00:35]} Kf8 {[%emt 0:00:42]} 21. Bh6+ {[%emt 0:00:13]} Ke7 {[%emt 0:01:44]} 22. Nf5+ {[%emt 0:00:05]} Ke8 {[%emt 0:00:35]} 23. Qg8# {[%emt 0:00:06]} 1-0

[Event "DVM U10 2024"]
[Site "Duesseldorf"]
[Date "2024.12.28"]
[Round "5"]
[White "Braren, Ove Neelis"]
[Black "Bienbeck, Matthis"]
[Result "1-0"]
[ECO "B38"]
[WhiteElo "1634"]
[BlackElo "1490"]
[Annotator "NA RC"]
[PlyCount "117"]
[EventDate "2024.12.23"]
[EventType "team-tourn"]
[EventRounds "7"]
[EventCountry "GER"]
[SourceTitle "playchess.com"]
[Source "ChessBase"]
[SourceQuality "1"]
[TimeControl "3300+5"]

1. e4 {[%emt 0:00:02]} c5 {[%emt 0:00:07]} 2. Nf3 {[%emt 0:00:05]} Nc6 {[%emt 0:00:07]} 3. d4 {[%emt 0:00:12]} cxd4 {[%emt 0:00:05]} 4. Nxd4 {[%emt 0:00:05]} g6 {[%emt 0:00:06]} 5. c4 {[%emt 0:00:04]} Bg7 {[%emt 0:00:06]} 6. Be3 {[%emt 0:00:07]} d6 {[%emt 0:00:31]} 7. Nc3 {[%emt 0:00:07]} Nf6 {[%emt 0:00:12]} 8. Be2 {[%emt 0:00:18]} O-O {[%emt 0:00:12]} 9. O-O {[%emt 0:00:57]} Bd7 {[%emt 0:00:45]} 10. h3 {[%emt 0:00:56]} b6 {[%emt 0:01:45]} 11. Qc2 {[%emt 0:01:54]} Rc8 {[%emt 0:00:14]} 12. Rad1 {[%emt 0:00:53]} Ne8 {[%emt 0:09:23]} 13. Qd2 {[%emt 0:06:39]} Ne5 {[%emt 0:01:19]} 14. b3 {[%emt 0:00:49]} Nc6 {[%emt 0:01:06]} 15. Nd5 {[%emt 0:02:36]} Nf6 {[%emt 0:01:49]} 16. f3 {[%emt 0:01:07]} e6 {[%emt 0:02:40]} 17. Nxc6 {[%emt 0:01:52]} Bxc6 {[%emt 0:00:15]} 18. Nxf6+ {[%emt 0:00:13]} Bxf6 {[%emt 0:00:25]} 19. Qxd6 {[%emt 0:00:10]} Qxd6 {[%emt 0:00:16]} 20. Rxd6 {[%emt 0:00:02]} Rfd8 {[%emt 0:00:53]} 21. Rfd1 {[%emt 0:02:40]} Rxd6 {[%emt 0:01:29]} 22. Rxd6 {[%emt 0:00:02]} Be7 {[%emt 0:00:18]} 23. Rd1 {[%emt 0:00:38]} Kg7 {[%emt 0:01:20]} 24. Kf2 {[%emt 0:02:41]} f6 {[%emt 0:01:23]} 25. Rc1 {[%emt 0:07:28]} Be8 {[%emt 0:03:47]} 26. f4 {[%emt 0:02:18]} Kf7 {[%emt 0:00:27]} 27. g4 {[%emt 0:02:15]} Bc5 {[%emt 0:02:02]} 28. Rd1 {[%emt 0:04:17]} Ke7 {[%emt 0:00:12]} 29. Bxc5+ {[%emt 0:00:42]} bxc5 {[%emt 0:00:18]} 30. Ke3 {[%emt 0:00:41]} Bd7 {[%emt 0:01:01]} 31. Bf3 {[%emt 0:00:44]} Bc6 {[%emt 0:02:19]} 32. e5 {[%emt 0:01:33]} f5 {[%emt 0:00:51]} 33. Rd6 {[%emt 0:00:51]} Bxf3 {[%emt 0:00:33]} 34. Kxf3 {[%emt 0:00:01]} Rc7 {[%emt 0:02:22]} 35. g5 {[%emt 0:03:06]} Rd7 {[%emt 0:00:34]} 36. Rxd7+ {[%emt 0:00:09]} Kxd7 {[%emt 0:00:06]} 37. Ke3 {[%emt 0:00:08]} Kc6 {[%emt 0:01:26]} 38. Kd3 {[%emt 0:00:01]} a5 {[%emt 0:00:14]} 39. Kc3 {[%emt 0:00:11]} Kb6 {[%emt 0:00:22]} 40. a3 {[%emt 0:00:05]} a4 {[%emt 0:00:27]} 41. b4 {[%emt 0:00:33]} Kc6 {[%emt 0:00:09]} 42. bxc5 {[%emt 0:00:06]} Kxc5 {[%emt 0:00:20]} 43. h4 {[%emt 0:00:39]} Kc6 {[%emt 0:00:30]} 44. Kb4 {[%emt 0:00:12]} Kb6 {[%emt 0:00:43]} 45. Kxa4 {[%emt 0:00:20]} Kc5 {[%emt 0:00:09]} 46. Kb3 {[%emt 0:00:09]} Kd4 {[%emt 0:00:18]} 47. Kb4 {[%emt 0:00:18]} Ke4 {[%emt 0:00:08]} 48. c5 {[%emt 0:00:10]} Kxf4 {[%emt 0:00:05]} 49. c6 {[%emt 0:00:06]} Kg3 {[%emt 0:00:07]} 50. c7 {[%emt 0:00:10]} f4 {[%emt 0:00:03]} 51. c8=Q {[%emt 0:00:11]} f3 {[%emt 0:00:05]} 52. Qxe6 {[%emt 0:00:19]} f2 {[%emt 0:00:08]} 53. Qf6 {[%emt 0:00:07]} Kg2 {[%emt 0:00:05]} 54. e6 {[%emt 0:00:07]} h5 {[%emt 0:00:06]} 55. e7 {[%emt 0:00:13]} Kh1 {[%emt 0:00:32]} 56. e8=Q {[%emt 0:00:17]} Kg1 {[%emt 0:00:10]} 57. Qe2 {[%emt 0:00:23]} Kh1 {[%emt 0:00:08]} 58. Qf1+ {[%emt 0:00:11]} Kh2 {[%emt 0:00:14]} 59. Q6xf2# {[%emt 0:00:08]} 1-0

[Event "DVM U10 2024"]
[Site "Duesseldorf"]
[Date "2024.12.28"]
[Round "5"]
[White "Bashirova, Sona"]
[Black "Marx, Jakob"]
[Result "0-1"]
[ECO "E61"]
[WhiteElo "1626"]
[BlackElo "1591"]
[Annotator "NA RC"]
[PlyCount "62"]
[EventDate "2024.12.23"]
[EventType "team-tourn"]
[EventRounds "7"]
[EventCountry "GER"]
[SourceTitle "playchess.com"]
[Source "ChessBase"]
[SourceQuality "1"]
[TimeControl "3300+5"]

1. d4 {[%emt 0:00:03]} Nf6 {[%emt 0:00:07]} 2. Bf4 {[%emt 0:00:05]} g6 {[%emt 0:00:03]} 3. e3 {[%emt 0:00:16]} Bg7 {[%emt 0:00:06]} 4. Nf3 {[%emt 0:00:32]} O-O {[%emt 0:00:10]} 5. c4 {[%emt 0:00:07]} d6 {[%emt 0:00:17]} 6. Nc3 {[%emt 0:00:37]} Nbd7 {[%emt 0:00:15]} 7. Bd3 {[%emt 0:00:43]} Re8 {[%emt 0:00:29]} 8. O-O {[%emt 0:02:13]} e5 {[%emt 0:00:32]} 9. dxe5 {[%emt 0:00:31]} dxe5 {[%emt 0:00:08]} 10. Bg5 {[%emt 0:00:47]} e4 {[%emt 0:00:29]} 11. Nxe4 {[%emt 0:00:29]} h6 {[%emt 0:00:44]} 12. Bh4 {[%emt 0:00:38]} c5 {[%emt 0:01:37]} 13. Qd2 {[%emt 0:00:46]} Nxe4 {[%emt 0:01:31]} 14. Bxe4 {[%emt 0:00:22]} g5 {[%emt 0:00:26]} 15. Bc2 {[%emt 0:04:44]} gxh4 {[%emt 0:00:12]} 16. Qd3 {[%emt 0:00:09]} Nf6 {[%emt 0:00:05]} 17. Qe2 {[%emt 0:00:28]} Bg4 {[%emt 0:00:22]} 18. Rad1 {[%emt 0:01:11]} Qc7 {[%emt 0:00:52]} 19. h3 {[%emt 0:00:25]} Bh5 {[%emt 0:00:22]} 20. Qd3 {[%emt 0:01:48]} Bxf3 {[%emt 0:00:41]} 21. gxf3 {[%emt 0:00:04]} Rad8 {[%emt 0:00:51]} 22. Qb3 {[%emt 0:00:43]} Qc6 {[%emt 0:02:45]} 23. e4 {[%emt 0:01:17]} Nh5 {[%emt 0:01:44]} 24. Qe3 {[%emt 0:03:08]} Bd4 {[%emt 0:04:17]} 25. Qc1 {[%emt 0:00:24]} Qf6 {[%emt 0:04:39]} 26. Kh2 {[%emt 0:12:11]} Be5+ {[%emt 0:00:57]} 27. Kg1 {[%emt 0:00:44]} Kh7 {[%emt 0:02:55]} 28. Rxd8 {[%emt 0:01:07]} Rxd8 {[%emt 0:00:18]} 29. Re1 {[%emt 0:03:37]} Qxf3 {[%emt 0:01:17]} 30. Re3 {[%emt 0:06:27]} Rg8+ {[%emt 0:00:16]} 31. Kf1 {[%emt 0:00:09]} Qh1+ {[%emt 0:00:07]} 0-1

[Event "DVM U10 2024"]
[Site "Duesseldorf"]
[Date "2024.12.28"]
[Round "5"]
[White "Jozsa, Lev"]
[Black "von Flottwell, Lionel"]
[Result "0-1"]
[ECO "C58"]
[WhiteElo "1617"]
[BlackElo "1597"]
[Annotator "NA RC"]
[PlyCount "52"]
[EventDate "2024.12.23"]
[EventType "team-tourn"]
[EventRounds "7"]
[EventCountry "GER"]
[SourceTitle "playchess.com"]
[Source "ChessBase"]
[SourceQuality "1"]
[TimeControl "3300+5"]

1. e4 {[%emt 0:00:01]} e5 {[%emt 0:00:14]} 2. Nf3 {[%emt 0:00:08]} Nc6 {[%emt 0:00:07]} 3. Bc4 {[%emt 0:00:04]} Nf6 {[%emt 0:00:06]} 4. Ng5 {[%emt 0:00:05]} d5 {[%emt 0:00:08]} 5. exd5 {[%emt 0:00:07]} Na5 {[%emt 0:00:07]} 6. Bb5+ {[%emt 0:00:17]} c6 {[%emt 0:00:08]} 7. dxc6 {[%emt 0:00:05]} bxc6 {[%emt 0:00:07]} 8. Qf3 {[%emt 0:00:03]} Be7 {[%emt 0:00:10]} 9. Bd3 {[%emt 0:06:28]} O-O {[%emt 0:04:24]} 10. Ne4 {[%emt 0:03:44]} Nd5 {[%emt 0:02:54]} 11. Nec3 {[%emt 0:08:07]} f5 {[%emt 0:03:42]} 12. Nxd5 {[%emt 0:10:01]} cxd5 {[%emt 0:00:31]} 13. Qe2 {[%emt 0:00:36]} Nc6 {[%emt 0:02:06]} 14. Bb5 {[%emt 0:00:30]} Nd4 {[%emt 0:00:27]} 15. Qd3 {[%emt 0:02:28]} Nxb5 {[%emt 0:00:22]} 16. Qxb5 {[%emt 0:00:13]} Rf6 {[%emt 0:00:20]} 17. Nc3 {[%emt 0:00:48]} d4 {[%emt 0:01:57]} 18. Nd5 {[%emt 0:03:00]} Rd6 {[%emt 0:03:35]} 19. Nxe7+ {[%emt 0:01:10]} Qxe7 {[%emt 0:00:13]} 20. Qe2 {[%emt 0:04:50]} Bb7 {[%emt 0:02:22]} 21. f3 {[%emt 0:02:24]} d3 {[%emt 0:02:03]} 22. Qd1 {[%emt 0:01:01]} e4 {[%emt 0:00:52]} 23. O-O {[%emt 0:02:40]} exf3 {[%emt 0:00:25]} 24. gxf3 {[%emt 0:00:35]} Rg6+ {[%emt 0:00:55]} 25. Kh1 {[%emt 0:01:02]} Qe2 {[%emt 0:00:05]} 26. Qxe2 {[%emt 0:00:50]} dxe2 {[%emt 0:00:01]} 0-1